{"text_format":"1","workbook":"xlsx","n_sheets":3,"sheets":["Aufmaß Nr. 1","Aufmaß Nr. 2","Endaufmaß"],"not_rendered":{"charts":0,"images":8,"macros":1,"external_links":0,"defined_names":6,"comments":0,"pivot_tables":0},"unopened":[],"bounds":{"document_bytes":16777216,"sheet_cells":100000,"rows_first":2000,"rows_last":500,"rows_between":2000,"halvings":0,"cell_chars":16384,"cell_head_chars":4096},"cells_cut":0,"cells_raw":0,"read":"whole","date_system":"1900"}

{"sheet":"Aufmaß Nr. 1","index":0,"n_rows":48,"n_cols":9,"rows_kept":48,"cut":false,"hidden":false,"merged":[[47,5,47,8],[5,0,6,0],[5,1,6,1],[5,2,6,2],[5,3,6,3],[5,4,6,4],[2,1,2,3],[2,5,2,6],[3,1,3,3],[3,5,3,6],[4,4,4,8],[45,2,45,5],[45,6,45,8],[5,5,6,5],[5,6,6,6],[5,7,6,7],[5,8,6,8],[44,2,44,5],[44,6,44,8]]}
["   Zusammenfassung der Einzelaufmaße",null,"Endaufmaß:"]
[" "," "]
["Projekt:","Bauvorhaben",null,null,"Datum :","TT.MM.JJJJ",null,"Aufmaß Nr.:",1]
["Firma:","Auftragnehmer",null,null,"Bestell - Nr.:","4xxxxxxx",null,"Seite","1 von 1"]
[" "," "," "," ","Leistungsnachweis"]
["Pos.","Positionstext (Kurztext aus LV)","Bestellmenge:","Einheit","bisheriger Stand","zusätzliche Leistung","neuer Stand","Beleg (Blatt-Nr.)","Bemerkungen"]
[]
[null,null,null,null,0,0,{"$f":"+E8+F8","v":0}]
[null,null,null,null,0,0,{"$f":"+E9+F9","v":0}]
[null,null,null,null,0,0,0]
[null,null,null,null,0,0,0]
[null,null,null,null,0,0,0]
[null,null,null,null,0,0,0]
[null,null,null,null,0,0,0]
[null,null,null,null,0,0,0]
[null,null,null,null,0,0,0]
[null,null,null,null,0,0,0]
[null,null,null,null,0,0,0]
[null,null,null,null,0,0,0]
[null,null,null,null,0,0,0]
[null,null,null,null,0,0,0]
[null,null,null,null,0,0,0]
[null,null,null,null,0,0,0]
[null,null,null,null,0,0,0]
[null,null,null,null,0,0,0]
[null,null,null,null,0,0,0]
[null,null,null,null,0,0,0]
[null,null,null,null,0,0,0]
[null,null,null,null,0,0,0]
[null,null,null,null,0,0,0]
[null,null,null,null,0,0,0]
[null,null,null,null,0,0,0]
[]
[]
[]
[]
[]
[]
[]
[]
[]
[]
[]
[]
[null,"Auftragnehmer","Auftraggeber [1]",null,null,null,"Auftraggeber [1]"]
[null,"Datum / Unterschrift & Stempel","Datum / Unterschrift & Stempel",null,null,null,"Datum / Unterschrift & Stempel"]
[]
[null,"[1] Bevollmächtigter des Auftraggebers","Interner Prüfvermerk des Auftraggebers: ",null,null,"(Diese Unterschrift stellt keine Leistungsanerkennung des \nAuftraggebers gegenüber dem Auftragnehmer dar!)"]

{"sheet":"Aufmaß Nr. 2","index":1,"n_rows":48,"n_cols":9,"rows_kept":48,"cut":false,"hidden":false,"merged":[[5,0,6,0],[5,1,6,1],[5,2,6,2],[5,3,6,3],[5,4,6,4],[2,1,2,3],[2,5,2,6],[3,1,3,3],[3,5,3,6],[4,4,4,8],[45,2,45,5],[45,6,45,8],[5,5,6,5],[5,6,6,6],[5,7,6,7],[5,8,6,8],[44,2,44,5],[44,6,44,8]]}
["   Zusammenfassung der Einzelaufmaße",null,"Endaufmaß:"]
[" "," "]
["Projekt:",{"$f":"+'Aufmaß Nr. 1'!B3:D3","v":"Bauvorhaben"},null,null,"Datum :","TT.MM.JJJJ",null,"Aufmaß Nr.:",2]
["Firma:","Auftragnehmer",null,null,"Bestell - Nr.:",{"$f":"+'Aufmaß Nr. 1'!F4:G4","v":"4xxxxxxx"},null,"Seite","Seite 1 von 1"]
[" "," "," "," ","Leistungsnachweis"]
["Pos.","Positionstext (Kurztext aus LV)","Bestellmenge:","Einheit","bisheriger Stand","zusätzliche Leistung","neuer Stand","Beleg (Blatt-Nr.)","Bemerkungen"]
[]
[null,null,null,null,{"$f":"+'Aufmaß Nr. 1'!G8","v":0},0,{"$f":"+E8+F8","v":0}]
[null,null,null,null,{"$f":"+'Aufmaß Nr. 1'!G9","v":0},0,{"$f":"+E9+F9","v":0}]
[null,null,null,null,{"$f":"+'Aufmaß Nr. 1'!G10","v":0},0,0]
[null,null,null,null,{"$f":"+'Aufmaß Nr. 1'!G11","v":0},0,0]
[null,null,null,null,{"$f":"+'Aufmaß Nr. 1'!G12","v":0},0,0]
[null,null,null,null,{"$f":"+'Aufmaß Nr. 1'!G13","v":0},0,0]
[null,null,null,null,{"$f":"+'Aufmaß Nr. 1'!G14","v":0},0,0]
[null,null,null,null,{"$f":"+'Aufmaß Nr. 1'!G15","v":0},0,0]
[null,null,null,null,{"$f":"+'Aufmaß Nr. 1'!G16","v":0},0,0]
[null,null,null,null,{"$f":"+'Aufmaß Nr. 1'!G17","v":0},0,0]
[null,null,null,null,{"$f":"+'Aufmaß Nr. 1'!G18","v":0},0,0]
[null,null,null,null,{"$f":"+'Aufmaß Nr. 1'!G19","v":0},0,0]
[null,null,null,null,{"$f":"+'Aufmaß Nr. 1'!G20","v":0},0,0]
[null,null,null,null,{"$f":"+'Aufmaß Nr. 1'!G21","v":0},0,0]
[null,null,null,null,{"$f":"+'Aufmaß Nr. 1'!G22","v":0},0,0]
[null,null,null,null,{"$f":"+'Aufmaß Nr. 1'!G23","v":0},0,0]
[null,null,null,null,{"$f":"+'Aufmaß Nr. 1'!G24","v":0},0,0]
[null,null,null,null,{"$f":"+'Aufmaß Nr. 1'!G25","v":0},0,0]
[null,null,null,null,{"$f":"+'Aufmaß Nr. 1'!G26","v":0},0,0]
[null,null,null,null,{"$f":"+'Aufmaß Nr. 1'!G27","v":0},0,0]
[null,null,null,null,{"$f":"+'Aufmaß Nr. 1'!G28","v":0},0,0]
[null,null,null,null,{"$f":"+'Aufmaß Nr. 1'!G29","v":0},0,0]
[null,null,null,null,{"$f":"+'Aufmaß Nr. 1'!G30","v":0},0,0]
[null,null,null,null,{"$f":"+'Aufmaß Nr. 1'!G31","v":0},0,0]
[null,null,null,null,{"$f":"+'Aufmaß Nr. 1'!G32","v":0},0,0]
[]
[]
[]
[]
[]
[]
[]
[]
[]
[]
[]
[]
[null,"Auftragnehmer","Auftraggeber [1]",null,null,null,"Auftraggeber [1]"]
[null,"Datum / Unterschrift & Stempel","Datum / Unterschrift & Stempel",null,null,null,"Datum / Unterschrift & Stempel"]
[]
[null,"[1] Bevollmächtigter des Auftraggebers"]

{"sheet":"Endaufmaß","index":2,"n_rows":48,"n_cols":9,"rows_kept":48,"cut":false,"hidden":false,"merged":[[5,0,6,0],[5,1,6,1],[5,2,6,2],[5,3,6,3],[5,4,6,4],[2,1,2,3],[2,5,2,6],[3,1,3,3],[3,5,3,6],[4,4,4,8],[45,2,45,5],[45,6,45,8],[5,5,6,5],[5,6,6,6],[5,7,6,7],[5,8,6,8],[44,2,44,5],[44,6,44,8]]}
["   Zusammenfassung der Einzelaufmaße",null,"Endaufmaß:"]
[" "," "]
["Projekt:",{"$f":"+'Aufmaß Nr. 1'!B3:D3","v":"Bauvorhaben"},null,null,"Datum :","TT.MM.JJJJ",null,"Aufmaß Nr.:",3]
["Firma:","Auftragnehmer",null,null,"Bestell - Nr.:",{"$f":"+'Aufmaß Nr. 1'!F4:G4","v":"4xxxxxxx"},null,"Seite","Seite 1 von 1"]
[" "," "," "," ","Leistungsnachweis"]
["Pos.","Positionstext (Kurztext aus LV)","Bestellmenge:","Einheit","bisheriger Stand","zusätzliche Leistung","neuer Stand","Beleg (Blatt-Nr.)","Bemerkungen"]
[]
[null,null,null,null,{"$f":"+'Aufmaß Nr. 2'!G8","v":0},0,{"$f":"+E8+F8","v":0}]
[null,null,null,null,{"$f":"+'Aufmaß Nr. 2'!G9","v":0},0,{"$f":"+E9+F9","v":0}]
[null,null,null,null,{"$f":"+'Aufmaß Nr. 2'!G10","v":0},0,0]
[null,null,null,null,{"$f":"+'Aufmaß Nr. 2'!G11","v":0},0,0]
[null,null,null,null,{"$f":"+'Aufmaß Nr. 2'!G12","v":0},0,0]
[null,null,null,null,{"$f":"+'Aufmaß Nr. 2'!G13","v":0},0,0]
[null,null,null,null,{"$f":"+'Aufmaß Nr. 2'!G14","v":0},0,0]
[null,null,null,null,{"$f":"+'Aufmaß Nr. 2'!G15","v":0},0,0]
[null,null,null,null,{"$f":"+'Aufmaß Nr. 2'!G16","v":0},0,0]
[null,null,null,null,{"$f":"+'Aufmaß Nr. 2'!G17","v":0},0,0]
[null,null,null,null,{"$f":"+'Aufmaß Nr. 2'!G18","v":0},0,0]
[null,null,null,null,{"$f":"+'Aufmaß Nr. 2'!G19","v":0},0,0]
[null,null,null,null,{"$f":"+'Aufmaß Nr. 2'!G20","v":0},0,0]
[null,null,null,null,{"$f":"+'Aufmaß Nr. 2'!G21","v":0},0,0]
[null,null,null,null,{"$f":"+'Aufmaß Nr. 2'!G22","v":0},0,0]
[null,null,null,null,{"$f":"+'Aufmaß Nr. 2'!G23","v":0},0,0]
[null,null,null,null,{"$f":"+'Aufmaß Nr. 2'!G24","v":0},0,0]
[null,null,null,null,{"$f":"+'Aufmaß Nr. 2'!G25","v":0},0,0]
[null,null,null,null,{"$f":"+'Aufmaß Nr. 2'!G26","v":0},0,0]
[null,null,null,null,{"$f":"+'Aufmaß Nr. 2'!G27","v":0},0,0]
[null,null,null,null,{"$f":"+'Aufmaß Nr. 2'!G28","v":0},0,0]
[null,null,null,null,{"$f":"+'Aufmaß Nr. 2'!G29","v":0},0,0]
[null,null,null,null,{"$f":"+'Aufmaß Nr. 2'!G30","v":0},0,0]
[null,null,null,null,{"$f":"+'Aufmaß Nr. 2'!G31","v":0},0,0]
[null,null,null,null,{"$f":"+'Aufmaß Nr. 2'!G32","v":0},0,0]
[]
[]
[]
[]
[]
[]
[]
[]
[]
[]
[]
[]
[null,"Auftragnehmer","Auftraggeber [1]",null,null,null,"Auftraggeber [1]"]
[null,"Datum / Unterschrift & Stempel","Datum / Unterschrift & Stempel",null,null,null,"Datum / Unterschrift & Stempel"]
[]
[null,"[1] Bevollmächtigter des Auftraggebers"]